bitfinex-derivatives/quotes_ETHF0:USTF0_20250702
["timestamp","ask_amount","ask_price","bid_price","bid_amount"]
[1751464734211,0.8043222,2449.1,2449.0,0.81639]
[1751464738115,0.0061222,2449.1,2449.0,0.81639]
[1751464739414,0.0061222,2449.1,2449.0,5.81639]
[1751464740816,0.0061222,2449.1,2449.0,0.81639]
[1751464741213,0.0061222,2449.1,2449.0,2.25399]
[1751464741611,0.0061222,2449.1,2449.0,0.81639]
[1751464743315,0.0061222,2449.1,2449.0,2.16219]
[1751464743620,0.81641,2449.0,2448.9,0.81639]
[1751464743816,0.736,2449.0,2448.9,0.81642]
[1751464744020,1.55241,2449.0,2448.9,0.81642]
[1751464744517,0.81642,2448.9,2448.8,0.81643]
[1751464744817,1.55241,2449.0,2448.9,0.81642]
[1751464745221,0.736,2449.0,2448.9,0.81642]
[1751464745418,1.55239,2449.0,2448.9,0.81642]
[1751464745615,0.81645,2448.9,2448.8,0.81642]
[1751464746619,2.1967,2449.0,2448.6,3.38708]
[1751464746824,3.01311,2449.0,2448.9,0.81642]
[1751464747218,1.55239,2449.0,2448.9,0.81642]
[1751464747418,0.736,2449.0,2448.9,0.81642]
[1751464747618,1.55239,2449.0,2448.9,0.81642]
[1751464747823,0.736,2449.0,2448.9,0.81642]
[1751464749820,1.55239,2449.0,2448.9,0.81642]
[1751464750416,2.04106,2448.9,2448.2,58.777]
[1751464750624,0.81657,2448.5,2448.4,0.81656]
[1751464750826,0.8166,2448.4,2448.3,0.81659]
[1751464751024,0.7271,2448.4,2448.3,41.61659]
[1751464751822,9.21434347,2448.9,2448.3,41.61659]
[1751464751823,0.0061222,2449.1,2448.9,0.81641]
[1751464752124,0.81643,2449.0,2448.9,0.81641]
[1751464752529,1.5495922,2449.1,2449.0,0.81639]
[1751464752728,0.8164,2449.0,2448.9,0.8164]
[1751464753631,0.81645,2448.9,2448.8,0.81643]
[1751464753825,0.81641,2449.0,2448.9,0.81639]
[1751464754124,0.81645,2448.9,2448.8,0.81644]
[1751464754530,0.81641,2449.0,2448.9,0.81639]
[1751464755632,0.81646,2448.9,2448.8,0.81644]
[1751464755833,0.81648,2448.8,2448.7,0.81644]
[1751464756232,0.81645,2448.9,2448.8,0.81642]
[1751464756930,2.16975,2448.9,2448.8,0.81642]
[1751464757325,1.3533,2448.9,2448.8,0.81642]
[1751464757529,11.753,2449.0,2448.9,0.81642]
[1751464758033,13.3025822,2449.1,2449.0,0.81639]
[1751464758534,0.81642,2449.0,2448.9,0.8164]
[1751464759034,13.3026022,2449.1,2449.0,0.81639]
[1751464759237,12.4862222,2449.1,2449.0,0.81639]
[1751464759436,13.3025722,2449.1,2449.0,0.81639]
[1751464760337,0.8164,2449.0,2448.9,0.81639]
[1751464762441,13.3026122,2449.1,2449.0,0.81639]
[1751464763843,0.81644,2449.0,2448.9,0.8164]
[1751464764047,0.81652,2448.7,2448.6,0.81648]
[1751464765036,0.7302,2448.8,2448.7,0.81649]
[1751464765838,1.54665,2448.8,2448.7,0.81649]
[1751464766341,2.77139,2448.8,2448.3,42.84156]
[1751464766543,0.81655,2448.6,2448.5,0.81652]
[1751464766744,1.54668,2448.8,2448.7,0.81649]
[1751464768239,0.7302,2448.8,2448.7,0.81649]
[1751464768442,13.3026022,2449.1,2449.0,0.81639]
[1751464770144,0.81641,2449.0,2448.9,0.81639]
[1751464770643,12.4862222,2449.1,2448.7,1.441]
[1751464770846,0.81645,2448.9,2448.8,0.81643]
[1751464771147,0.81641,2449.0,2448.9,0.81639]
[1751464771838,0.81645,2448.9,2448.8,0.81644]
[1751464772039,0.81641,2449.0,2448.9,0.81639]
[1751464773152,2.04098,2449.0,2448.5,40.8]
[1751464773343,2.04098,2449.0,2448.4,2.0414]
[1751464773344,2.04112,2448.9,2448.4,2.0414]
[1751464773544,2.04114,2448.8,2448.4,2.0414]
[1751464773742,0.81655,2448.6,2448.5,0.81652]
[1751464774144,0.8165,2448.7,2448.6,0.81649]
[1751464774544,1.57528,2448.8,2448.7,0.81649]
[1751464774946,0.7588,2448.8,2448.7,0.81649]
[1751464775146,12.4862222,2449.1,2449.0,0.81639]
[1751464775445,13.2450222,2449.1,2449.0,0.81639]
[1751464776250,14.0613722,2449.1,2449.0,0.81639]
[1751464776452,13.2450222,2449.1,2449.0,0.81639]
[1751464778445,14.0613722,2449.1,2449.0,0.81639]
[1751464779454,13.2450222,2449.1,2449.0,0.81639]
[1751464779854,14.0613722,2449.1,2449.0,0.81639]
[1751464780250,13.2450222,2449.1,2449.0,0.81639]
[1751464782856,14.0613722,2449.1,2449.0,0.81639]
[1751464783057,13.2450222,2449.1,2449.0,0.81639]
[1751464784560,14.0613722,2449.1,2449.0,0.81639]
[1751464785861,13.2450222,2449.1,2449.0,0.81639]
[1751464786062,14.0613722,2449.1,2449.0,0.81639]
[1751464786360,13.2450222,2449.1,2449.0,0.81639]
[1751464786868,14.0613722,2449.1,2449.0,0.81639]
[1751464787968,13.2450222,2449.1,2449.0,0.81639]
[1751464788570,0.7649222,2449.1,2449.0,0.81639]
[1751464788867,0.0061222,2449.1,2449.0,5.81639]
[1751464790665,2.2e-06,2449.1,2449.0,5.81639]
[1751464791470,2.2e-06,2449.1,2449.0,46.61639]
[1751464792067,2.2e-06,2449.1,2449.0,66.85839]
[1751464792267,2.2e-06,2449.1,2449.0,41.61639]
[1751464792764,2.2e-06,2449.1,2449.0,43.03589]
[1751464792969,2.2e-06,2449.1,2449.0,41.61639]
[1751464795171,2.2e-06,2449.1,2449.0,0.81639]
[1751464795971,0.8163522,2449.1,2449.0,0.81639]
[1751464796172,0.81641,2449.0,2448.9,0.81639]
[1751464796468,0.81641,2449.0,2448.8,40.8]
[1751464796469,0.8163822,2449.1,2449.0,0.81639]
[1751464797378,2.2e-06,2449.1,2449.0,0.81639]
[1751464797671,2.2e-06,2449.1,2449.0,7.98966347]
[1751464799273,2.2e-06,2449.1,2449.0,0.81639]
[1751464800069,0.8163522,2449.1,2449.0,0.81639]
[1751464800871,2.2e-06,2449.1,2449.0,0.81639]
[1751464801473,2.2e-06,2449.1,2449.0,2.16409]
[1751464802168,2.2e-06,2449.1,2449.0,0.81639]
[1751464802569,0.8163522,2449.1,2449.0,0.81639]
[1751464802880,0.8163522,2449.1,2448.3,4.85675]
[1751464802881,2.04098,2449.0,2448.3,2.04149]
[1751464803181,0.81653,2448.7,2448.6,0.8165]
[1751464803479,0.81649,2448.8,2448.7,0.81647]
[1751464803678,1.56399,2448.8,2448.7,0.81647]
[1751464803874,2.97119,2448.8,2448.7,0.81647]
[1751464804277,0.7475,2448.8,2448.7,0.81647]
[1751464805573,0.7724,2448.9,2448.8,0.81645]
[1751464805775,0.7475,2449.0,2448.9,0.81642]
[1751464809586,2.2e-06,2449.1,2449.0,0.81639]
[1751464809784,2.2e-06,2449.1,2449.0,2.22819]
[1751464811282,2.2e-06,2449.1,2449.0,3.01759]
[1751464811483,2.2e-06,2449.1,2449.0,8.01759]
[1751464812186,2.2e-06,2449.1,2449.0,3.01759]
[1751464813688,2.2e-06,2449.1,2449.0,2.22819]
[1751464814084,2.2e-06,2449.1,2449.0,0.81639]
[1751464814686,2.2e-06,2449.1,2449.0,7.98966347]
[1751464815888,2.2e-06,2449.1,2449.0,12.98966347]
[1751464816393,2.2e-06,2449.1,2449.0,7.98966347]
[1751464819989,0.816,2450.2,2449.4,4.0812]
[1751464820300,2.17703504,2450.1,2450.0,0.81605]
[1751464820590,3.55333504,2450.1,2450.0,41.61605]
[1751464820991,2.73730504,2450.1,2450.0,41.61605]
[1751464821383,8.55332504,2450.1,2450.0,40.8]
[1751464821591,0.81609,2449.9,2449.8,0.0061222]
[1751464821793,12.54709,2449.9,2449.8,0.0061222]
[1751464821994,17.54709,2449.9,2449.8,0.0061222]
[1751464822194,17.54709,2449.9,2449.8,0.8222422]
[1751464822394,12.54709,2449.9,2449.8,0.8222422]
[1751464822594,12.54709,2449.9,2449.8,0.0061222]
[1751464822794,17.54709,2449.9,2449.8,0.0061222]
[1751464823295,18.27019,2449.9,2449.8,0.0061222]
[1751464824390,13.27019,2449.9,2449.8,0.0061222]
[1751464824694,13.27019,2449.9,2449.8,0.8222422]
[1751464825194,13.98969,2449.9,2449.8,0.8222422]
[1751464825398,13.1736,2449.9,2449.8,0.8222422]
[1751464825894,1.4426,2449.9,2449.8,0.8222422]
[1751464828294,0.7231,2449.9,2449.8,0.8222422]
[1751464828697,5.69471481,2451.8,2450.9,0.81575]
[1751464828991,1.35855475,2451.0,2450.9,7.98902347]
[1751464829497,0.7616,2451.3,2451.2,0.81565]
[1751464829694,2.11931335,2451.3,2451.2,0.81565]
[1751464830593,1.35771335,2451.3,2451.2,7.98892347]
[1751464830898,3.35e-06,2451.3,2451.2,7.98892347]
[1751464831194,3.35e-06,2451.3,2451.2,15.06672347]
[1751464831403,3.35e-06,2451.3,2451.2,10.06672347]
[1751464832902,3.35e-06,2451.3,2451.2,35.27272347]
[1751464833696,0.81554,2451.6,2451.2,34.45707347]
[1751464833901,2.27051,2451.7,2451.5,0.81553]
[1751464834303,2.27051,2451.7,2451.2,34.46319567]
[1751464834496,1.455,2451.7,2451.6,0.81552]
[1751464835904,2.27049,2451.7,2451.6,0.81552]
[1751464836107,2.27051,2451.7,2451.3,7.17327347]
[1751464836404,2.27051,2451.7,2451.6,0.81552]
[1751464837608,1.455,2451.7,2451.6,0.81552]
[1751464837803,1.455,2451.7,2451.6,7.98879347]
[1751464838004,0.7347,2452.1,2452.0,0.81539]
[1751464838407,0.7347,2452.1,2452.0,41.61539]
[1751464839308,1.55005,2452.1,2452.0,41.61539]
[1751464839502,1.55005,2452.1,2452.0,40.8]
[1751464840210,0.81541,2452.0,2451.9,0.81542]
[1751464840411,0.7347,2452.1,2452.0,0.81539]
[1751464841613,1.55005,2452.1,2452.0,0.81539]
[1751464842204,0.81542,2452.0,2451.9,0.8154]
[1751464842519,0.81542,2451.9,2451.8,41.61542]
[1751464842813,1.52742,2451.9,2451.8,41.61545]
[1751464845620,0.712,2451.9,2451.8,41.61545]
[1751464846419,0.7347,2452.1,2452.0,0.81539]
[1751464847017,1.55005,2452.1,2452.0,0.81539]
[1751464847220,0.7347,2452.1,2452.0,0.81539]
[1751464848019,13.74892,2452.7,2452.0,7.17327347]
[1751464848222,0.81525,2452.5,2452.4,0.81522]
[1751464849022,0.81532,2452.3,2452.2,0.81528]
[1751464849718,0.81525,2452.5,2452.4,0.81522]
[1751464849914,2.35792,2452.6,2452.5,0.81522]
[1751464850422,0.81528,2452.4,2452.3,0.81523]
[1751464850723,0.81525,2452.5,2452.4,0.81522]
[1751464851121,0.81535,2452.2,2452.1,0.81531]
[1751464851425,0.81538,2452.1,2452.0,0.81534]
[1751464852825,0.81542,2451.9,2451.8,41.61544]
[1751464853123,0.81553,2451.7,2451.6,0.81549]
[1751464853722,0.81552,2451.6,2451.5,41.61552]
[1751464854020,0.81555,2451.5,2451.4,0.81556]
[1751464854220,0.81554,2451.6,2451.5,0.81552]
[1751464855722,0.81551,2451.7,2451.6,0.81549]
[1751464856326,2.19848,2451.8,2451.7,0.81549]
[1751464858527,0.81543,2451.9,2451.8,0.81545]
[1751464858924,1.5704,2452.0,2451.9,0.81542]
[1751464860133,0.777,2452.0,2451.9,0.81542]
[1751464860428,0.7926,2452.3,2452.0,0.81539]
[1751464860626,0.7926,2452.3,2452.2,0.81532]
[1751464860928,0.7926,2452.3,2452.2,8.96144899]
[1751464861330,1.60789,2452.3,2452.2,8.96144899]
[1751464861532,1.60789,2452.3,2452.2,8.14612899]
[1751464861832,3.06539,2452.3,2452.2,8.14612899]
[1751464862227,3.06539,2452.3,2452.2,8.96144899]
[1751464862431,3.06539,2452.3,2452.2,8.14612899]
[1751464862825,1.60789,2452.3,2452.2,8.96144899]
[1751464863026,1.60789,2452.3,2452.2,8.14612899]
[1751464863330,3.06539,2452.3,2452.2,8.96144899]
[1751464863931,0.81553,2451.7,2450.8,4.07893]
[1751464864226,0.81551,2451.7,2451.6,0.81547]
[1751464864629,0.81551,2451.7,2451.6,41.61547]
[1751464865031,0.81551,2451.7,2451.6,0.81547]
[1751464865524,0.81551,2451.7,2451.4,2.03898]
[1751464865525,0.7551,2451.9,2451.4,40.8]
[1751464865730,0.81553,2451.7,2451.6,0.81549]
[1751464865933,0.81553,2451.7,2451.6,0.81552]
[1751464866833,0.81555,2451.6,2451.5,0.81553]
[1751464867034,0.81555,2451.5,2451.4,0.81557]
[1751464867231,1.55515,2451.5,2451.4,0.81557]
[1751464867432,0.81562,2451.4,2451.3,0.81559]
[1751464867628,0.81562,2451.3,2451.2,0.0061222]
[1751464868035,2.1814,2451.4,2451.2,0.0061222]
[1751464868234,0.81562,2451.3,2451.2,0.0061222]
[1751464868732,2.23562,2451.3,2451.2,0.0061222]
[1751464869429,2.23562,2451.3,2451.2,8.15225119]
[1751464870034,9.40889347,2451.3,2451.2,8.15225119]
[1751464870535,2.03926,2451.1,2450.7,0.81579]
[1751464870731,0.81577,2450.9,2450.8,0.81575]
[1751464870932,0.81583,2450.8,2450.7,0.8158]
[1751464871226,3.40482,2451.0,2450.8,0.81579]
[1751464871227,1.5563,2450.9,2450.8,0.81579]
[1751464871830,0.8019,2450.9,2450.8,0.81579]
[1751464872231,0.8019,2450.9,2450.8,2.23729]
[1751464872826,0.8019,2450.9,2450.6,0.0061222]
[1751464873032,2.03964,2450.6,2450.0,2.04008]
[1751464873231,0.81597,2450.4,2450.3,0.81593]
[1751464874532,1.57301,2450.5,2450.4,0.81592]
[1751464874729,0.7571,2450.5,2450.4,0.81592]
[1751464875133,0.7571,2450.5,2450.4,8.96204899]
[1751464875733,12.52181,2450.8,2450.7,0.81582]
[1751464875928,11.706,2450.8,2450.7,0.81582]
[1751464876336,12.52179,2450.8,2450.7,0.81582]
[1751464877436,12.52181,2450.8,2450.7,0.81582]
[1751464877835,0.81588,2450.6,2450.5,0.81585]
[1751464878733,0.81584,2450.7,2450.6,0.81582]
[1751464878938,12.52181,2450.8,2450.7,0.81582]
[1751464879139,0.8019,2450.9,2450.8,0.81579]
[1751464879338,1.61765,2450.9,2450.8,0.81579]
[1751464880237,0.81583,2450.8,2450.7,0.81579]
[1751464880634,0.81585,2450.7,2450.6,0.81583]
[1751464881539,0.81592,2450.5,2450.4,0.81588]
[1751464881738,0.81589,2450.6,2450.5,0.81585]
[1751464882240,0.81592,2450.4,2450.3,0.81589]
[1751464883337,0.81592,2450.4,2450.3,8.96201899]
[1751464883536,0.81592,2450.4,2450.3,8.14612899]
[1751464883938,0.81592,2450.4,2450.3,3.10020137]
[1751464884140,5.93835148,2450.4,2450.3,3.10020137]
[1751464884341,0.93835148,2450.4,2450.3,1.87070137]
[1751464884539,5.93835148,2450.4,2450.3,1.87070137]
[1751464886941,5.93835148,2450.4,2450.3,0.85060137]
[1751464887141,64.67335148,2450.4,2450.3,0.85060137]
[1751464887744,66.87135148,2450.4,2450.3,0.85060137]
[1751464887943,103.75435148,2450.4,2450.3,0.85060137]
[1751464888635,61.87135148,2450.4,2450.3,0.85060137]
[1751464888843,98.63092,2450.4,2450.3,0.85060137]
[1751464889545,97.815,2450.4,2450.3,1.66655137]
[1751464889739,73.45292,2450.4,2450.3,1.66655137]
[1751464889940,72.637,2450.4,2450.3,1.66655137]
[1751464890341,72.637,2450.4,2450.3,2.40895137]
[1751464891240,73.45292,2450.4,2450.3,2.40895137]
[1751464891446,72.637,2450.4,2450.3,2.40895137]
[1751464891940,73.45292,2450.4,2450.3,1.66655137]
[1751464892149,73.45292,2450.4,2450.3,0.85060137]
[1751464892337,73.45292,2450.4,2450.3,1.66655137]
[1751464892543,73.45292,2450.4,2450.3,0.85060137]
[1751464893044,73.45292,2450.4,2450.1,0.0061222]
[1751464893045,0.81599,2450.2,2450.1,0.0061222]
[1751464893244,0.81622,2449.5,2449.4,0.81625]
[1751464893443,0.8163,2449.3,2449.2,0.8163]
[1751464893645,0.81626,2449.4,2449.3,0.81626]
[1751464894146,0.81632,2449.2,2449.1,3.02633]
[1751464894352,25.99231,2449.3,2449.2,0.81632]
[1751464894649,0.81632,2449.2,2449.1,3.02634]
[1751464894848,25.99231,2449.3,2449.2,0.81632]
[1751464896250,25.99231,2449.3,2449.2,8.96244899]
[1751464896646,25.176,2449.3,2449.2,8.96244899]
[1751464896849,25.99229,2449.3,2449.2,8.96244899]
[1751464898249,37.34927347,2449.3,2448.1,5.63974918]
[1751464898554,0.81657,2448.5,2448.4,0.81659]
[1751464898853,0.81661,2448.4,2448.2,1.4432]
[1751464899052,0.8156,2448.5,2447.9,3.56917]
[1751464899248,25.9946,2448.4,2448.3,0.81662]
[1751464899448,25.178,2448.4,2448.0,44.28498]
[1751464899649,25.9946,2448.4,2448.3,0.81662]
[1751464899849,25.178,2448.4,2448.3,0.81662]
[1751464900048,25.99459,2448.4,2448.3,0.81662]
[1751464900844,25.99461,2448.4,2448.3,0.81662]
[1751464901047,25.178,2448.4,2448.3,0.81662]
[1751464901249,25.99458,2448.4,2448.3,0.81662]
[1751464901448,25.99458,2448.4,2448.3,8.14612899]
[1751464902252,25.99458,2448.4,2448.3,8.96274899]
[1751464902555,0.8156,2448.5,2448.4,0.81658]
[1751464902556,1.63217,2448.5,2448.4,0.81658]
[1751464902756,37.7106,2448.5,2448.4,0.81658]
[1751464902954,11.71,2448.5,2448.4,2.22378]
[1751464903154,36.895,2448.5,2448.4,2.22378]
[1751464903352,11.71,2448.5,2448.4,2.22378]
[1751464903748,36.895,2448.7,2448.6,0.81652]
[1751464903953,11.71,2448.7,2448.6,0.81652]
[1751464904250,2.198,2449.1,2449.0,0.81638]
[1751464904453,12.52637,2449.1,2449.0,0.81636]
[1751464904647,36.895,2449.1,2449.0,0.81636]
[1751464905258,36.895,2449.1,2449.0,8.96248899]
[1751464905958,37.71135,2449.1,2449.0,8.96248899]
[1751464906258,36.895,2449.1,2449.0,8.96248899]
[1751464906855,58.752,2449.2,2449.1,0.81635]
[1751464907050,96.46332,2449.2,2449.1,2.25435]
[1751464907254,96.46332,2449.2,2449.1,1.438]
[1751464908359,0.81635,2449.1,2449.0,8.14612899]
[1751464913064,0.81633,2449.3,2449.0,13.14612899]
[1751464913258,0.0061222,2449.4,2449.0,12.37936899]
[1751464913259,25.1891222,2449.4,2449.0,12.37936899]
[1751464913461,26.0053822,2449.4,2449.3,0.81628]
[1751464913866,26.0053822,2449.4,2449.3,2.24518]
[1751464914173,25.1891222,2449.4,2449.0,8.90952899]
[1751464914471,0.81635,2449.1,2449.0,8.90952899]
[1751464914680,25.99935,2449.1,2449.0,48.94612899]
[1751464914970,25.99935,2449.1,2449.0,8.14612899]
[1751464915361,37.70435,2449.1,2449.0,8.14612899]
[1751464915775,101.59984647,2449.1,2449.0,8.14612899]
[1751464915967,103.02534647,2449.1,2449.0,8.14612899]
[1751464917073,103.83644647,2449.1,2449.0,8.14612899]
[1751464918376,98.83644647,2449.1,2449.0,8.14612899]
[1751464918570,97.41094647,2449.1,2449.0,8.14612899]
[1751464919578,60.52294647,2449.1,2449.0,8.14612899]
[1751464919775,83.955,2449.1,2449.0,8.96250899]
[1751464920272,84.77135,2449.1,2449.0,8.96250899]
[1751464920675,0.8223722,2449.4,2449.3,0.81628]
[1751464920973,37.7103722,2449.4,2449.3,0.81628]
[1751464921175,11.7121222,2449.4,2449.3,0.81628]
[1751464921376,37.7093722,2449.4,2449.3,0.81628]
[1751464921576,37.7093722,2449.4,2449.3,2.23388]
[1751464921769,37.7093722,2449.4,2449.3,0.81628]
[1751464921973,36.8931222,2449.4,2449.3,0.81628]
[1751464922174,0.0061222,2449.4,2449.3,2.23388]
[1751464922477,36.8931222,2449.4,2449.3,2.23388]
[1751464922879,37.7093722,2449.4,2449.3,2.23388]
[1751464924167,0.81628,2449.3,2449.2,0.7822]
[1751464924372,0.81628,2449.3,2449.1,40.8]
[1751464924373,0.81632,2449.2,2449.1,40.8]
[1751464924676,0.81635,2449.1,2449.0,8.96248899]
[1751464926074,7.98962347,2449.1,2449.0,8.14612899]
[1751464926267,8.79052347,2449.1,2449.0,8.14612899]
[1751464926668,8.79052347,2449.1,2449.0,7.29009899]
[1751464926871,15.32161994,2449.1,2449.0,7.29009899]
[1751464927069,8.14834647,2449.1,2449.0,7.29009899]
[1751464928377,3.14834647,2449.1,2449.0,7.29009899]
[1751464928586,40.03234647,2449.1,2449.0,7.29009899]
[1751464929583,38.62374647,2449.1,2449.0,7.29009899]
[1751464930772,13.44574647,2449.1,2449.0,8.10648899]
[1751464930972,38.50225,2449.1,2449.0,7.29009899]
[1751464931175,38.50225,2449.1,2449.0,8.10648899]
[1751464931578,11.706,2449.1,2449.0,8.10648899]
[1751464931784,36.885,2449.1,2449.0,8.10648899]
[1751464932081,0.81636,2449.1,2449.0,7.29009899]
[1751464932582,0.81636,2449.1,2449.0,8.10648899]
[1751464933679,25.99535,2449.2,2449.1,0.81636]
[1751464933874,25.99535,2449.2,2449.1,1.3742]
[1751464934579,25.179,2449.2,2449.0,7.29009899]
[1751464934784,0.81636,2449.1,2449.0,7.29009899]
[1751464937984,8.97706772,2449.1,2449.0,7.29009899]
[1751464938180,10.40106772,2449.1,2449.0,7.29009899]
[1751464938485,10.52356419,2449.1,2449.0,6.45790899]
[1751464938881,11.78292336,2449.1,2449.0,2.43557919]
[1751464939082,11.78292336,2449.1,2449.0,1.60161919]
[1751464940382,39.08121564,2449.1,2449.0,1.60161919]
[1751464940882,37.82185647,2449.1,2449.0,1.60161919]
[1751464941481,12.52236,2449.1,2449.0,2.41800919]
[1751464941676,37.69836,2449.1,2449.0,2.41800919]
[1751464942088,0.81635,2449.2,2449.1,0.81636]
[1751464942387,36.883,2449.2,2449.1,2.26056]
[1751464942986,11.706,2449.2,2449.1,2.26056]
[1751464943185,0.0061222,2449.4,2449.3,0.81629]
[1751464943487,0.81613,2449.8,2449.7,0.81614]
[1751464943679,0.81617,2449.7,2449.4,2.8488]
[1751464943878,0.81621,2449.6,2449.5,0.81621]
[1751464944083,0.81618,2449.7,2449.6,0.81619]
[1751464944284,0.81619,2449.6,2449.5,2.19262]
[1751464944484,0.81619,2449.6,2449.5,1.3764]
[1751464945284,27.97547,2449.9,2449.5,2.97801919]
[1751464945482,0.81615,2449.8,2449.6,0.81619]
[1751464945683,0.81615,2449.8,2449.7,1.45]
[1751464946689,0.81619,2449.6,2449.5,1.60161919]
[1751464946885,25.99019,2449.6,2449.5,1.60161919]
[1751464947284,28.15839,2449.6,2449.5,1.60161919]
[1751464947798,28.28086147,2449.6,2449.5,1.59549699]
[1751464948280,26.82366147,2449.6,2449.5,1.59549699]
[1751464948480,38.52266147,2449.6,2449.5,1.59549699]
[1751464948685,39.91786147,2449.6,2449.5,1.59549699]
[1751464949285,103.68986147,2449.6,2449.5,0.74477699]
[1751464949786,104.94694435,2449.6,2449.5,0.74477699]
[1751464950987,68.07394435,2449.6,2449.5,0.74477699]
[1751464951291,104.94794435,2449.6,2449.5,0.74477699]
[1751464952692,61.81686147,2449.6,2449.5,0.74477699]
[1751464952893,72.12266147,2449.6,2449.5,0.74477699]
[1751464953092,97.29466147,2449.6,2449.5,0.74477699]
[1751464954190,98.63336147,2449.6,2449.5,0.74477699]
[1751464954393,97.29466147,2449.6,2449.5,0.74477699]
[1751464954586,72.12266147,2449.6,2449.5,1.56099699]
[1751464954889,96.46119,2449.6,2449.5,0.74477699]
[1751464955993,103.62766801,2449.6,2449.5,0.74477699]
[1751464957187,103.75013948,2449.6,2449.5,0.74477699]
[1751464963899,103.74913948,2449.6,2449.5,0.74477699]
[1751464964100,70.473,2449.6,2449.5,1.56099699]
[1751464964301,95.643,2449.6,2449.5,1.56099699]
[1751464964503,96.45919,2449.6,2449.5,1.56099699]
[1751464964704,96.45919,2449.6,2449.5,0.74477699]
[1751464966002,58.772,2449.6,2449.5,1.56099699]
[1751464966301,70.473,2449.6,2449.5,1.56099699]
[1751464966606,95.642,2449.6,2449.5,1.56099699]
[1751464967004,96.45819,2449.6,2449.5,0.74477699]
[1751464967405,96.45819,2449.6,2449.5,2.16927699]
[1751464967908,96.45819,2449.6,2449.5,2.98549699]
[1751464968609,96.45819,2449.6,2449.5,2.16927699]
[1751464969305,96.45819,2449.6,2449.5,2.98549699]
[1751464970112,95.642,2449.6,2449.5,2.98549699]
[1751464970609,96.45819,2449.6,2449.5,2.98549699]
[1751464971210,96.45619,2449.6,2449.5,2.98549699]
[1751464971410,58.772,2449.6,2449.5,2.98549699]
[1751464971610,95.639,2449.6,2449.5,2.98549699]
[1751464971811,96.45419,2449.6,2449.5,2.98549699]
[1751464972111,95.638,2449.6,2449.5,2.98549699]
[1751464972711,96.45419,2449.6,2449.5,2.98549699]
[1751464972904,95.638,2449.6,2449.5,2.98549699]
[1751464973104,96.45419,2449.6,2449.5,2.98549699]
[1751464973309,84.75419,2449.6,2449.5,2.98549699]
[1751464973510,83.938,2449.6,2449.5,2.98549699]
[1751464973710,84.75419,2449.6,2449.5,2.98549699]
[1751464974210,91.92066801,2449.6,2449.5,2.16927699]
[1751464974410,92.04313948,2449.6,2449.5,0.74477699]
[1751464975013,58.772,2449.6,2449.5,1.56099699]
[1751464975214,83.937,2449.6,2449.5,1.56099699]
[1751464975513,58.772,2449.6,2449.5,1.56099699]
[1751464975714,83.937,2449.6,2449.5,1.56099699]
[1751464976111,83.936,2449.6,2449.5,1.56099699]
[1751464976810,11.697,2449.7,2449.6,0.81619]
[1751464977009,36.861,2449.7,2449.6,2.15459]
[1751464977811,0.0061222,2449.8,2449.7,0.81616]
[1751464978016,0.0061222,2449.8,2449.7,1.55586]
[1751464978317,0.0061222,2449.8,2449.7,7.33996]
[1751464979212,11.697,2450.1,2450.0,0.81606]
[1751464979417,58.767,2450.3,2450.2,0.81599]
[1751464979913,11.697,2450.5,2450.4,0.81592]
[1751464980113,37.67589,2450.5,2450.4,0.81592]
[1751464980313,37.67589,2450.5,2450.4,0.74477699]
[1751464980516,37.67589,2450.5,2450.4,1.56069699]
[1751464981208,38.92978925,2450.5,2450.4,1.56069699]
[1751464981411,38.11389925,2450.5,2450.4,1.56069699]
[1751464981609,1.25389925,2450.5,2450.4,2.89989699]
[1751464981812,11.696,2450.8,2450.7,0.81582]
[1751464982011,38.10974864,2450.8,2450.7,0.81582]
[1751464982217,11.696,2450.8,2450.7,5.81582]
[1751464982417,11.696,2451.4,2450.7,12.16647801]
[1751464982614,26.4131687,2451.3,2450.8,4.19956]
[1751464982812,2.0688387,2451.2,2451.1,0.81566]
[1751464983020,1.2531687,2451.2,2451.1,0.81566]
[1751464983218,26.4131687,2451.2,2451.1,0.81566]
[1751464983424,0.7303,2451.5,2451.4,0.81559]
[1751464983617,38.8377009,2451.5,2451.3,0.8156]
[1751464983817,2.0680109,2451.4,2451.3,0.8156]
[1751464984017,0.81562,2451.3,2451.2,2.18673]
[1751464984319,25.155,2451.3,2451.2,2.18673]
[1751464984520,25.97062,2451.3,2451.2,2.18673]
[1751464984821,0.81569,2451.1,2451.0,0.7744]
[1751464985021,0.81574,2451.0,2450.9,0.81576]
[1751464985219,0.81574,2451.0,2450.9,2.24126]
[1751464985417,0.81576,2450.9,2450.8,0.0061222]
[1751464985624,25.97076,2450.9,2450.8,0.8219122]
[1751464986023,25.97076,2450.9,2450.8,0.0061222]
[1751464986623,26.72636,2450.9,2450.8,0.0061222]
[1751464986920,91.99576651,2450.9,2450.8,2.2e-06]
[1751464987226,0.81602,2450.1,2450.0,40.8]
[1751464987925,0.81602,2450.1,2449.8,1.4255]
[1751464987926,0.81609,2449.9,2449.8,1.4255]
[1751464988126,25.152,2449.9,2449.8,0.81611]
[1751464988322,25.96809,2449.9,2449.8,0.81611]
[1751464988523,25.152,2449.9,2449.8,0.81611]
[1751464988926,25.96809,2449.9,2449.8,0.81611]
[1751464989326,25.152,2449.9,2449.8,0.81611]
[1751464989526,25.152,2449.9,2449.8,8.96223899]
[1751464989726,25.96809,2449.9,2449.8,8.96223899]
[1751464990128,25.96809,2449.9,2449.8,8.14612899]
[1751464992425,37.66109,2449.9,2449.8,8.14612899]
[1751464992924,39.04089,2449.9,2449.8,8.14612899]
[1751464993429,37.66409,2449.9,2449.8,8.14612899]
[1751464993630,37.66409,2449.9,2449.8,8.96224899]
[1751464994827,37.66409,2449.9,2449.8,8.14612899]
[1751464995229,37.66409,2449.9,2449.8,8.96224899]
[1751464995530,25.96909,2449.9,2449.8,8.96224899]
[1751464995930,25.96909,2449.9,2449.8,8.14612899]